bitfinex/quotes_SOLUSD_20250815
["timestamp","ask_amount","ask_price","bid_price","bid_amount"]
[1755217170609,119.94404167,193.31,193.3,2050.03118382]
[1755217170984,119.94404167,193.31,193.3,1982.82951263]
[1755217171593,119.94404167,193.31,193.3,1976.97094447]
[1755217172083,119.94404167,193.31,193.3,1909.76927328]
[1755217172984,119.94404167,193.31,193.3,1842.56760209]
[1755217173218,119.94404167,193.31,193.3,1836.70903393]
[1755217173997,119.94404167,193.31,193.3,1769.50736274]
[1755217174199,83.16404167,193.31,193.3,1769.50736274]
[1755217174408,119.94404167,193.31,193.3,1769.50736274]
[1755217174902,119.94404167,193.31,193.3,1702.30569155]
[1755217175200,120.02404167,193.31,193.3,1702.30569155]
[1755217176401,83.20107024,193.31,193.3,1702.30569155]
[1755217176608,120.00107024,193.31,193.3,1702.30569155]
[1755217176812,83.20107024,193.31,193.3,1702.30569155]
[1755217177109,120.00107024,193.31,193.3,1702.30569155]
[1755217178717,100.60986886,193.31,193.3,1702.30569155]
[1755217179009,53.80986886,193.31,193.3,1702.30569155]
[1755217179214,72.03303812,193.31,193.3,1702.30569155]
[1755217181622,66.86,193.31,193.3,1702.30569155]
[1755217181797,30.06,193.31,193.3,1702.30569155]
[1755217181992,0.06,193.31,193.3,1702.30569155]
[1755217190033,36.84,193.31,193.3,1702.30569155]
[1755217190418,41.49573431,193.31,193.3,1702.30569155]
[1755217191919,36.84,193.31,193.3,1702.33569155]
[1755217193129,41.49573431,193.31,193.3,1702.33569155]
[1755217193824,36.84,193.31,193.3,1702.33569155]
[1755217194020,0.06,193.31,193.3,1702.33569155]
[1755217194220,36.84,193.31,193.3,1702.33569155]
[1755217194433,0.06,193.31,193.3,1702.33569155]
[1755217198038,0.06,193.31,193.3,1707.50899729]
[1755217198337,0.06,193.31,193.3,1744.28899729]
[1755217199638,0.06,193.31,193.3,1739.11569155]
[1755217200639,0.06,193.31,193.3,1744.28899729]
[1755217202849,0.06,193.31,193.3,1739.11569155]
[1755217203638,0.06,193.31,193.3,1702.33569155]
[1755217203639,36.84,193.31,193.3,1702.33569155]
[1755217203839,40.30648025,193.31,193.3,1702.33569155]
[1755217204529,55.41269582,193.31,193.3,1702.33569155]
[1755217204836,63.92343785,193.31,193.3,1702.33569155]
[1755217205241,73.92343785,193.31,193.3,1676.43500916]
[1755217205438,77.14646686,193.31,193.3,1508.1713055]
[1755217205746,107.14646686,193.31,193.3,1396.52770123]
[1755217205939,107.14646686,193.31,193.3,1288.96754148]
[1755217206133,107.14646686,193.31,193.3,1236.44310764]
[1755217206338,107.14646686,193.31,193.3,1199.67808183]
[1755217206641,107.14646686,193.31,193.3,1071.36363616]
[1755217206840,107.14646686,193.31,193.3,1048.27947019]
[1755217207153,107.14646686,193.31,193.3,1043.662637]
[1755217207447,107.14646686,193.31,193.3,1005.97424455]
[1755217207649,107.14646686,193.31,193.3,989.67861541]
[1755217208022,107.14646686,193.31,193.3,965.90861541]
[1755217208345,105.1893124,193.31,193.3,965.90861541]
[1755217208824,105.1896701,193.31,193.3,965.90861541]
[1755217209647,105.1896701,193.31,193.3,893.77623571]
[1755217209843,105.1896701,193.31,193.3,856.47159171]
[1755217210047,105.1896701,193.31,193.3,853.88191724]
[1755217210226,105.18995658,193.31,193.3,853.88191724]
[1755217210427,105.18995658,193.31,193.3,851.29224277]
[1755217210833,105.18995658,193.31,193.3,848.70175325]
[1755217211323,105.18995658,193.31,193.3,846.11126373]
[1755217211522,105.18995658,193.31,193.3,843.52077421]
[1755217211749,105.18995658,193.31,193.3,830.40461514]
[1755217211928,105.18995658,193.31,193.3,827.81412562]
[1755217212123,120.75294858,193.31,193.3,827.81412562]
[1755217212447,96.54824878,193.31,193.3,755.68518264]
[1755217212630,96.54824878,193.31,193.3,752.98718264]
[1755217212825,90.75294858,193.31,193.3,750.39669312]
[1755217213048,90.75294858,193.31,193.3,742.09196522]
[1755217213224,90.74341881,193.31,193.3,739.5014757]
[1755217213426,90.74341881,193.31,193.3,607.6014757]
[1755217213649,90.74341881,193.31,193.3,605.01098618]
[1755217213955,90.74341881,193.31,193.3,602.4200936]
[1755217214322,90.74341881,193.31,193.3,599.82920102]
[1755217214738,90.74341881,193.31,193.3,536.25830844]
[1755217215029,90.74341881,193.31,193.3,435.82652775]
[1755217215240,90.73453909,193.31,193.3,397.19263811]
[1755217215535,90.73453909,193.31,193.3,373.44246653]
[1755217215747,90.73453909,193.31,193.3,349.44422024]
[1755217215958,100.93394777,193.31,193.3,346.85332766]
[1755217216246,85.37095577,193.31,193.3,346.21412766]
[1755217216446,85.37095577,193.31,193.3,335.41688292]
[1755217216833,85.37095577,193.31,193.3,324.63387831]
[1755217217040,85.37095577,193.31,193.3,316.33430799]
[1755217217230,85.37095577,193.31,193.3,312.57188793]
[1755217217435,91.11327775,193.31,193.3,172.32447994]
[1755217217642,116.39095577,193.31,193.3,145.53306796]
[1755217217938,116.39095577,193.31,193.3,134.5995286]
[1755217218146,116.39095577,193.31,193.3,126.37113904]
[1755217218345,116.39095577,193.31,193.3,123.37167441]
[1755217218566,116.39095577,193.31,193.3,114.96987111]
[1755217218851,117.08095577,193.31,193.3,112.37830648]
[1755217219147,132.65040877,193.31,193.3,77.6511627]
[1755217219350,125.5191416,193.31,193.3,67.0445244]
[1755217219533,119.78694542,193.31,193.3,64.45295977]
[1755217219733,125.51829366,193.31,193.3,55.98909326]
[1755217219946,51.98694542,193.31,193.3,32.03752863]
[1755217220148,26.0,193.11,192.97,15.10621557]
[1755217220334,110.08391581,193.11,192.97,15.10621557]
[1755217220553,115.25221548,193.11,192.92,52.10621557]
[1755217220854,26.0,193.01,192.89,75.2364999]
[1755217221061,26.0,192.97,192.89,70.05223756]
[1755217221372,37.04,192.96,192.9,15.10621557]
[1755217221656,37.04,192.96,192.89,70.05223756]
[1755217222036,4.21261452,192.98,192.89,70.05223756]
[1755217222238,26.0,192.94,192.9,15.10621557]
[1755217222452,63.06,192.94,192.89,15.10621557]
[1755217222678,37.04,192.95,192.89,15.10621557]
[1755217222853,37.04,192.95,192.9,0.49]
[1755217223454,37.04,192.95,192.92,15.10621557]
[1755217223653,37.04,192.95,192.94,15.10621557]
[1755217223856,37.04,192.95,192.94,15.59621557]
[1755217226984,67.04,192.95,192.94,15.59621557]
[1755217228562,42.22268981,192.95,192.94,15.59621557]
[1755217230880,42.22268981,192.95,192.94,0.49]
[1755217232262,31.18354113,192.92,192.9,0.03]
[1755217232463,30.0,192.95,192.9,0.03]
[1755217232666,93.04,192.95,192.9,0.03]
[1755217232864,93.04,192.95,192.92,15.10621557]
[1755217233297,93.04,192.95,192.94,15.10621557]
[1755217233478,93.04,192.95,192.94,15.59621557]
[1755217233682,63.04,192.95,192.94,15.59621557]
[1755217234577,68.22268981,192.95,192.94,15.59621557]
[1755217234891,26.0,192.92,192.91,15.596216]
[1755217235074,63.06,192.92,192.91,0.49]
[1755217235971,68.24349574,192.92,192.91,0.49]
[1755217236377,63.06,192.92,192.91,0.49]
[1755217236881,63.06,192.92,192.91,15.59621557]
[1755217237093,31.18269259,192.95,192.92,15.10621557]
[1755217237263,37.06,192.94,192.93,15.59621557]
[1755217237462,37.06,192.94,192.93,0.49]
[1755217237966,37.06,192.95,192.93,5.67322707]
[1755217238167,63.06,192.98,192.95,15.10621557]
[1755217238387,37.06,192.98,192.97,15.10621557]
[1755217238594,37.06,192.98,192.97,15.59621557]
[1755217238770,37.08,193.01,192.97,15.59621557]
[1755217238972,18.12720115,193.08,192.99,15.10621557]
[1755217239290,26.0,193.04,193.0,0.49]
[1755217239592,37.08,193.03,193.0,0.49]
[1755217239902,37.08,193.03,193.02,15.10621557]
[1755217240073,37.08,193.03,193.02,0.49]
[1755217240766,26.0,193.04,193.02,0.49]
[1755217240995,37.08,193.04,193.03,0.49]
[1755217241287,37.06,193.06,193.04,15.10621557]
[1755217241480,37.06,193.06,193.02,15.10621557]
[1755217241666,37.06,193.06,193.05,15.59621557]
[1755217242065,26.0,193.03,192.97,0.49]
[1755217242376,37.06,193.02,192.98,15.10621557]
[1755217242578,37.06,193.01,192.98,15.10621557]
[1755217242893,37.06,193.0,192.97,15.10621557]
[1755217243197,0.7,192.99,192.94,0.03]
[1755217243503,37.06,192.98,192.94,0.03]
[1755217243681,26.0,192.95,192.94,0.03]
[1755217243881,68.24268981,192.95,192.94,0.03]
[1755217244089,68.94268981,192.95,192.94,0.03]
[1755217244295,72.36540642,192.95,192.94,0.03]
[1755217244588,63.06,192.95,192.94,0.03]
[1755217245587,68.24268981,192.95,192.94,0.03]
[1755217247504,76.19005928,192.95,192.94,0.03]
[1755217247710,72.3761567,192.95,192.94,0.03]
[1755217248290,76.19628753,192.95,192.94,0.03]
[1755217248493,76.19628753,192.95,192.92,0.03]
[1755217248691,76.19628753,192.95,192.9,0.03]
[1755217248692,26.0,192.91,192.9,0.03]
[1755217249010,70.29359772,192.91,192.9,0.03]
[1755217249222,7.25307241,192.91,192.9,0.03]
[1755217249430,3.43346689,192.91,192.9,0.03]
[1755217249601,37.04,192.93,192.9,0.03]
[1755217249784,7.25843253,192.92,192.9,0.03]
[1755217250123,3.43346689,192.91,192.9,0.03]
[1755217250319,72.05357428,192.91,192.9,0.03]
[1755217250522,75.48704117,192.91,192.9,0.03]
[1755217250698,76.18704117,192.91,192.9,0.03]
[1755217251402,7.26327673,192.91,192.9,0.55]
[1755217251613,40.47346689,192.91,192.9,15.13621557]
[1755217251926,49.4907788,192.91,192.9,15.13621557]
[1755217252087,44.30701436,192.91,192.9,15.13621557]
[1755217252288,44.31090688,192.91,192.9,15.13621557]
[1755217252511,40.47346689,192.91,192.9,15.13621557]
[1755217253391,45.65723133,192.91,192.9,15.13621557]
[1755217253700,76.19759741,192.91,192.9,0.03]
[1755217253912,54.48344548,192.91,192.9,0.03]
[1755217254223,26.0,192.89,192.88,0.03]
[1755217254427,70.3741349,192.89,192.86,0.03]
[1755217254587,7.2741349,192.88,192.86,0.03]
[1755217254917,44.3741349,192.87,192.86,0.03]
[1755217255084,45.0741349,192.87,192.86,0.03]
[1755217255289,45.1141349,192.87,192.86,0.03]
[1755217255514,50.29897442,192.87,192.86,0.03]
[1755217257316,26.0,192.85,192.84,0.03]
[1755217257522,75.59951213,192.85,192.84,0.03]
[1755217257896,76.29951213,192.85,192.84,0.03]
[1755217258904,38.45951213,192.85,192.84,0.03]
[1755217259105,75.59951213,192.85,192.84,0.03]
[1755217259504,79.93052025,192.85,192.84,0.03]
[1755217260434,70.4141349,192.85,192.84,0.03]
[1755217260926,33.2741349,192.85,192.84,0.03]
[1755217261129,75.59951213,192.85,192.84,0.03]
[1755217261844,76.30951213,192.85,192.84,0.03]
[1755217262610,89.27295522,192.85,192.76,15.10621557]
[1755217262811,26.0,192.81,192.74,15.10621557]
[1755217263038,44.4141349,192.8,192.74,15.10621557]
[1755217263332,44.4141349,192.8,192.74,15.62621557]
[1755217263333,7.28468517,192.79,192.74,15.62621557]
[1755217263540,40.59346689,192.78,192.76,15.10621557]
[1755217263722,37.16,192.78,192.76,15.10621557]
[1755217263922,37.16,192.78,192.74,15.10621557]
[1755217264111,37.16,192.84,192.77,0.52]
[1755217264312,3.46847414,192.83,192.77,0.52]
[1755217264737,3.46847414,192.82,192.77,0.52]
[1755217264932,3.46847414,192.81,192.74,15.10621557]
[1755217265136,3.46847414,192.8,192.74,15.10621557]
[1755217265331,3.46847414,192.81,192.76,15.10621557]
[1755217265536,3.46847414,192.81,192.78,15.10621557]
[1755217265726,37.18,192.82,192.78,15.10621557]
[1755217265926,63.18,192.84,192.8,15.10621557]
[1755217266127,63.18,192.84,192.81,0.52]
[1755217266128,37.18,192.84,192.81,0.52]
[1755217266311,37.18,192.84,192.82,0.52]
[1755217266635,37.18,192.86,192.82,0.52]
[1755217266859,8.03289599,192.85,192.8,15.10621557]
[1755217267018,3.46913349,192.84,192.8,15.10621557]
[1755217267215,40.64913349,192.84,192.8,15.10621557]
[1755217267440,37.18,192.84,192.8,15.10621557]
[1755217268438,37.18,192.84,192.79,15.106216]
[1755217268439,4.17763395,192.83,192.79,15.106216]
[1755217268616,37.87,192.82,192.75,20.29423365]
[1755217269145,37.16,192.82,192.77,15.10621557]
[1755217269321,37.16,192.82,192.79,15.10621557]
[1755217270138,37.16,192.82,192.75,20.77607808]
[1755217270139,9.36346794,192.81,192.76,15.10621557]
[1755217270315,3.46693346,192.81,192.76,15.10621557]
[1755217270517,8.02653597,192.8,192.72,0.03]
[1755217270727,37.18,192.79,192.72,0.03]
[1755217270937,37.18,192.79,192.73,15.10621557]
[1755217271126,3.46523319,192.78,192.73,15.10621557]
[1755217271418,0.71,192.78,192.73,15.10621557]
[1755217271624,5.89739018,192.78,192.73,15.10621557]
[1755217273752,42.36706985,192.79,192.75,15.10621557]
[1755217274127,43.07706985,192.79,192.73,5.18858859]
[1755217274426,43.07706985,192.79,192.72,15.13621557]
[1755217275643,5.89706985,192.79,192.72,15.13621557]
[1755217275822,37.2,192.78,192.72,15.13621557]
[1755217276023,5.89706985,192.79,192.72,15.13621557]
[1755217276347,26.0,192.75,192.72,0.03]
[1755217276527,37.91,192.78,192.72,0.03]
[1755217276528,40.63542795,192.74,192.72,0.03]
[1755217276728,37.24,192.73,192.72,0.03]
[1755217276933,37.26,192.74,192.72,0.03]
[1755217277227,0.71,192.73,192.72,0.03]
[1755217277625,37.26,192.74,192.72,0.03]
[1755217278018,37.97,192.74,192.72,0.03]
[1755217279419,0.71,192.73,192.72,0.03]
[1755217280049,5.89860582,192.73,192.72,0.03]
[1755217280247,0.71,192.73,192.72,0.03]
[1755217280751,5.89860582,192.73,192.72,0.03]
[1755217282545,9.34635948,192.73,192.72,0.03]
[1755217286117,5.89860582,192.73,192.72,0.03]
[1755217286347,9.3448069,192.73,192.72,0.03]
[1755217287242,26.0,192.71,192.66,0.03]
[1755217287435,26.0,192.67,192.66,0.03]
[1755217287642,70.49657432,192.67,192.66,0.03]
[1755217287837,71.20657432,192.67,192.66,0.03]
[1755217288341,3.44620108,192.67,192.66,0.03]
[1755217288529,37.26,192.67,192.66,0.03]
[1755217289348,42.45022162,192.67,192.66,0.03]
[1755217290151,40.70493395,192.67,192.66,0.03]
[1755217291561,5.18887505,192.72,192.66,0.03]
[1755217291737,37.26,192.71,192.67,15.10621557]
[1755217291937,63.26,192.71,192.68,0.52]
[1755217292140,37.26,192.71,192.69,15.10621557]
[1755217292353,37.26,192.71,192.68,0.52]
[1755217292354,37.28,192.72,192.7,0.52]
[1755217292667,4.30775135,192.79,192.71,15.10621557]
[1755217292872,41.11089391,192.78,192.71,15.10621557]
[1755217293040,12.25646773,192.77,192.67,0.52]
[1755217293370,26.0,192.73,192.66,0.03]
[1755217293548,40.74782247,192.72,192.66,0.03]
[1755217293744,3.44782247,192.71,192.66,0.03]
[1755217293948,37.3,192.7,192.66,0.03]
[1755217294873,37.97,192.7,192.66,0.03]
[1755217295168,37.3,192.7,192.66,0.03]
[1755217295369,4.12262416,192.69,192.66,0.03]
[1755217295676,26.0,192.67,192.66,0.03]
[1755217295842,17.27934722,192.67,192.51,0.55]
[1755217296045,30.31415559,192.63,192.51,0.55]
[1755217296261,26.0,192.59,192.52,15.10621557]
[1755217296568,26.0,192.59,192.51,5.74447279]
[1755217296569,50.03829702,192.58,192.51,5.74447279]
[1755217296741,3.45262416,192.57,192.51,5.74447279]
[1755217296943,3.45262416,192.57,192.51,5.19447279]
[1755217297150,30.0,192.56,192.52,15.65621557]
[1755217297361,37.56,192.55,192.54,15.10621557]
[1755217299170,37.56,192.55,192.54,20.29994154]
[1755217299370,37.56,192.59,192.54,20.84994154]
[1755217299577,37.56,192.61,192.56,15.10621557]
[1755217299870,37.58,192.62,192.58,15.10621557]
[1755217300079,37.58,192.62,192.58,15.65621557]
[1755217300667,37.58,192.62,192.58,20.84881478]
[1755217301342,37.56,192.61,192.58,20.84881478]
[1755217301780,37.56,192.61,192.56,5.19316358]
[1755217301946,37.56,192.61,192.57,15.10621557]
[1755217302674,0.67,192.64,192.57,15.65621557]
[1755217302882,3.44856638,192.68,192.58,1.06926472]
[1755217303058,5.18860582,192.73,192.6,15.10621557]
[1755217303254,5.18860582,192.73,192.64,15.10621557]
[1755217303255,37.72,192.73,192.64,15.10621557]
[1755217303445,37.72,192.73,192.66,15.10621557]
[1755217304087,3.45188563,192.72,192.66,15.10621557]
[1755217304377,4.12188563,192.72,192.66,15.10621557]
[1755217304548,5.18914431,192.71,192.65,15.10621557]
[1755217304998,0.67,192.7,192.63,0.55]
[1755217305198,37.7,192.69,192.62,15.10621557]
[1755217305400,0.67,192.68,192.62,15.10621557]
[1755217306269,4.12290584,192.68,192.62,15.10621557]
[1755217307194,4.12290584,192.68,192.62,5.19138847]
[1755217307594,9.31292549,192.68,192.62,5.19138847]
[1755217307965,4.12290584,192.68,192.62,5.19138847]
[1755217308668,0.67,192.68,192.62,5.19138847]
[1755217309180,4.12646153,192.68,192.62,5.19138847]
[1755217309372,0.67,192.67,192.6,15.10621557]
[1755217309604,30.12646153,192.67,192.6,15.10621557]
[1755217309780,30.12646153,192.67,192.56,0.55]
[1755217309781,7.96629329,192.66,192.56,0.55]
[1755217309984,30.31415559,192.67,192.54,5.1934989]
[1755217309985,26.0,192.64,192.54,5.1934989]
[1755217310186,3.45646153,192.63,192.56,15.10621557]
[1755217310386,3.45646153,192.63,192.6,0.03]
[1755217310905,26.67,192.65,192.6,0.03]
[1755217311205,37.66,192.63,192.6,0.03]
[1755217311409,37.66,192.63,192.6,15.13621557]
[1755217311709,4.12794576,192.62,192.6,0.03]
[1755217312206,0.67,192.61,192.6,0.03]
[1755217313613,38.35,192.61,192.6,0.03]
[1755217313821,41.80794576,192.61,192.6,0.03]
[1755217314823,46.99978418,192.61,192.6,0.03]
[1755217314994,41.80794576,192.61,192.6,0.03]
[1755217316251,4.12794576,192.61,192.6,0.03]
[1755217316528,26.0,192.63,192.6,0.03]
[1755217316687,37.62,192.61,192.6,0.03]
[1755217317097,26.0,192.63,192.6,0.03]
[1755217317299,41.0639455,192.62,192.6,0.03]
[1755217317504,37.6,192.62,192.6,0.03]
[1755217318714,4.98415559,192.7,192.61,0.55]
[1755217318921,41.06618226,192.69,192.61,0.55]
[1755217319089,37.62,192.69,192.61,0.55]
[1755217319295,3.46804458,192.68,192.61,1.06918384]
[1755217319604,37.62,192.69,192.61,1.06918384]
[1755217319605,37.62,192.69,192.65,15.10621557]
[1755217319799,26.0,192.72,192.67,15.10621557]
[1755217320027,44.94040822,192.71,192.67,15.10621557]
[1755217320228,3.4680612,192.7,192.65,15.10621557]
[1755217320652,3.4680612,192.7,192.67,15.10621557]
[1755217320948,0.06,192.73,192.69,15.10621557]
[1755217321110,0.06,192.73,192.68,15.10621557]
[1755217321313,0.06,192.73,192.69,0.55]
[1755217321512,0.06,192.73,192.71,15.10621557]
[1755217321741,0.06,192.73,192.72,20.29509062]
[1755217322255,0.06,192.73,192.72,20.84509062]
[1755217322547,0.06,192.76,192.73,15.10621557]
[1755217322757,0.06,192.76,192.75,15.10621557]
[1755217323138,0.06,192.76,192.75,15.65621557]
[1755217323816,0.06,192.76,192.75,21.36308975]
[1755217324558,0.06,192.87,192.79,15.10621557]
[1755217324755,0.06,192.87,192.81,15.10621557]
[1755217325325,0.06,192.87,192.83,15.10621557]
[1755217325520,0.06,192.87,192.83,15.65621557]
[1755217325930,0.06,192.87,192.85,15.10621557]
[1755217327657,0.06,192.87,192.86,5.18510836]
[1755217327856,0.06,192.87,192.86,20.29132393]
[1755217328048,0.06,192.87,192.86,20.84132393]
[1755217328550,0.06,192.87,192.86,20.29132393]
[1755217330860,0.06,192.87,192.86,20.84132393]
[1755217331059,0.06,192.87,192.86,21.35983476]
[1755217331289,0.06,192.89,192.87,15.10621557]
[1755217331457,0.06,192.89,192.88,15.62467264]
[1755217331661,0.06,192.89,192.88,15.65621557]
[1755217332645,1e-08,192.89,192.88,20.84078628]
[1755217332850,1e-08,192.9,192.89,15.10621557]
[1755217333045,1e-08,192.9,192.89,53.23621557]
[1755217333289,1e-08,192.91,192.89,53.23621557]
[1755217333451,1e-08,192.91,192.9,42.17461888]
[1755217334350,1e-08,192.91,192.9,47.35865205]
[1755217335387,1e-08,192.91,192.9,15.10621557]
[1755217335909,0.69000001,192.91,192.9,15.10621557]
[1755217337707,0.69000001,192.91,192.85,15.10621557]
[1755217338083,5.87379276,192.91,192.85,5.18533868]
[1755217338293,5.18430193,192.89,192.84,15.10621557]
[1755217338500,0.69,192.88,192.84,20.29182862]
[1755217339218,0.69,192.87,192.84,20.29182862]
[1755217339707,0.69,192.9,192.84,20.29182862]
[1755217339911,0.69,192.9,192.84,20.84182862]
[1755217340804,1e-08,192.91,192.87,15.10621557]
[1755217341922,1e-08,192.91,192.89,15.10621557]
[1755217342820,1e-08,192.91,192.9,15.65621557]
[1755217343932,1e-08,192.91,192.9,22.91628374]
[1755217345725,1e-08,192.91,192.9,60.45628374]
[1755217346104,0.06,192.93,192.92,41.10621557]
[1755217346424,0.06,192.95,192.93,15.10621557]
[1755217346610,0.06,192.95,192.94,52.64621557]
[1755217347726,0.06,192.95,192.94,53.19621557]
[1755217348433,0.06,192.95,192.94,58.379174]
[1755217348635,0.06,192.95,192.94,60.454885]
[1755217349626,0.06,192.97,192.94,60.454885]
[1755217349830,0.06,192.97,192.96,41.10621557]
[1755217350329,0.06,192.97,192.96,46.28863679]
[1755217350629,0.06,192.97,192.96,83.76863679]
[1755217354335,0.06,192.97,192.96,99.33485779]
[1755217355722,0.78,192.97,192.96,35.85485779]
[1755217355906,0.78,192.97,192.96,30.67243657]
[1755217356529,0.78,192.97,192.96,15.10621557]
[1755217361744,0.06,192.97,192.96,20.28863679]
[1755217362239,0.78,192.97,192.96,20.28863679]
[1755217364232,4.18951879,192.97,192.96,20.28863679]
[1755217364940,8.0225539,192.97,192.96,15.10621557]
[1755217365139,38.0225539,192.97,192.96,15.10621557]
[1755217367248,38.0225539,192.97,192.93,5.2132251]
[1755217367249,47.51886215,192.97,192.93,0.03]
[1755217367461,4.32350875,192.94,192.93,0.03]
[1755217367755,41.56606265,192.94,192.93,0.03]
[1755217367923,42.28606265,192.94,192.93,0.03]
[1755217368325,43.14551233,192.94,192.93,0.03]
[1755217368649,47.47148001,192.94,192.93,0.03]
[1755217369220,43.14551233,192.94,192.93,0.03]
[1755217370548,43.15948289,192.94,192.93,0.03]
[1755217373332,84.75546733,192.94,192.93,0.03]
[1755217374555,80.42273636,192.94,192.93,0.03]
[1755217375060,106.42273636,192.94,192.93,0.03]
[1755217375239,106.42273636,192.94,192.91,0.03]
[1755217375442,12.31308258,192.93,192.91,0.03]
[1755217375646,37.25977793,192.92,192.91,0.03]
[1755217375844,37.97977793,192.92,192.91,0.03]
[1755217376439,43.16327367,192.92,192.91,0.03]
[1755217376763,37.97977793,192.92,192.91,0.03]
[1755217377335,39.31301453,192.92,192.91,0.03]
[1755217377757,34.12951879,192.92,192.91,0.03]
[1755217378756,33.40951879,192.92,192.91,0.03]
[1755217378941,30.0,192.92,192.91,15.68621557]
[1755217379458,30.0,192.92,192.91,15.13621557]
[1755217380655,0.68,192.94,192.92,15.10621557]
[1755217381058,0.68,192.93,192.91,0.03]
[1755217381459,37.22,192.92,192.91,0.03]
[1755217381677,70.68644723,192.92,192.91,0.03]
[1755217381974,71.36644723,192.92,192.91,0.03]
[1755217382754,76.54994297,192.92,192.91,0.03]
[1755217383976,71.36644723,192.92,192.91,0.03]
[1755217384874,76.54994297,192.92,192.91,0.03]
[1755217385375,71.36644723,192.92,192.91,0.03]
[1755217385554,76.54994297,192.92,192.91,0.03]
[1755217387978,102.54994297,192.92,192.91,0.03]
[1755217388278,106.40020521,192.92,192.91,0.03]
[1755217388576,72.54994297,192.92,192.91,0.03]
[1755217388950,76.39974,192.92,192.91,0.03]
[1755217390485,72.56994297,192.92,192.91,0.03]
[1755217391464,59.46644723,192.92,192.91,0.03]
[1755217391670,93.24,192.92,192.91,0.03]
[1755217391959,102.56364084,192.92,192.91,0.03]
[1755217399888,102.56364084,192.92,192.84,5.35564535]
[1755217400094,30.0,192.9,192.84,5.35564535]
[1755217400276,37.18,192.89,192.84,5.35564535]
[1755217400476,37.18,192.89,192.84,5.18564535]
[1755217400665,4.14534994,192.88,192.83,15.13621557]
[1755217400874,37.18,192.87,192.83,0.03]
[1755217401073,30.0,192.86,192.83,0.03]
[1755217403189,37.86,192.85,192.83,0.03]
[1755217403373,37.16,192.86,192.83,0.03]
[1755217406305,30.0,192.84,192.83,0.03]
[1755217406706,30.0,192.84,192.83,0.2]
[1755217406873,30.0,192.84,192.83,20.49213062]
[1755217408373,37.12,192.91,192.85,0.17]
[1755217408881,37.12,192.91,192.87,15.10621557]
[1755217409082,3.47285763,192.9,192.87,15.10621557]
[1755217409484,30.0,192.88,192.87,15.10621557]
[1755217410233,71.27300395,192.88,192.83,0.03]
[1755217410418,4.15300395,192.87,192.83,15.13621557]
[1755217410621,0.68,192.86,192.83,15.13621557]
[1755217410815,0.67,192.85,192.83,15.13621557]
[1755217411346,4.1437641,192.87,192.83,5.21587615]
[1755217411504,3.4737641,192.86,192.83,5.21587615]
[1755217411703,0.67,192.87,192.83,5.21587615]
[1755217411927,3.4738028,192.86,192.83,5.21587615]
[1755217412131,0.67,192.87,192.83,5.21587615]
[1755217412326,3.47515602,192.86,192.83,5.21587615]
[1755217412503,0.67,192.87,192.83,5.21587615]
[1755217412711,3.47522322,192.86,192.83,5.21587615]
[1755217412936,0.67,192.87,192.83,5.21587615]
[1755217413113,3.47522406,192.86,192.83,0.03]
[1755217413314,0.67,192.86,192.83,0.03]
[1755217413645,3.47553062,192.85,192.83,0.03]
[1755217413812,3.47553135,192.85,192.83,0.03]
[1755217414018,0.67,192.85,192.83,0.03]
[1755217415923,4.14570177,192.84,192.83,0.03]
[1755217416351,34.14570177,192.84,192.83,0.03]
[1755217417660,30.0,192.84,192.83,0.03]
[1755217417834,30.0,192.84,192.83,0.2]
[1755217418040,30.0,192.84,192.83,15.30621557]
[1755217418515,30.0,192.84,192.83,15.13621557]
[1755217418720,30.0,192.84,192.83,15.30621557]
[1755217418944,37.08,192.9,192.83,15.30621557]
[1755217419152,3.47782797,192.89,192.85,15.10621557]
[1755217419340,37.08,192.9,192.85,15.10621557]